bitfinex/quotes_ETHUSD_20251221
["timestamp","ask_amount","ask_price","bid_price","bid_amount"]
[1766309737322,1.6234,3003.4,3002.3,5.95196326]
[1766309737479,1.6234,3003.4,3002.4,3.33066879]
[1766309738399,0.002,3002.9,3002.2,3.33087224]
[1766309738598,0.002,3002.9,3002.5,0.435]
[1766309739125,0.002,3002.9,3002.6,0.435]
[1766309739495,0.002,3002.9,3002.3,3.70596018]
[1766309739691,0.002,3002.9,3002.4,0.435]
[1766309739924,0.002,3002.9,3002.3,3.70594535]
[1766309740121,0.002,3002.9,3002.4,0.435]
[1766309741229,0.002,3002.9,3001.9,4.33178007]
[1766309741408,0.002,3002.9,3002.3,3.33077521]
[1766309741725,0.002,3002.9,3002.4,0.435]
[1766309742902,1.6234,3002.7,3002.4,0.435]
[1766309744522,1.1307,3002.7,3002.4,0.435]
[1766309745520,0.4927,3003.3,3002.4,9.42532642]
[1766309745726,0.4927,3003.3,3002.4,6.09470893]
[1766309745922,3.32956243,3003.4,3002.4,6.09470893]
[1766309745923,2.00562624,3003.2,3002.4,6.09470893]
[1766309746290,0.38222624,3003.2,3002.4,6.09470893]
[1766309746491,1.6234,3003.1,3002.4,6.09470893]
[1766309748401,1.5647,3003.6,3002.8,5.65970893]
[1766309748718,1.1307,3003.6,3002.8,6.09470893]
[1766309749092,1.1307,3003.8,3002.8,7.04552982]
[1766309749646,1.1307,3003.8,3002.9,0.435]
[1766309750624,1.6234,3003.7,3002.9,0.435]
[1766309750830,1.1307,3003.6,3002.9,0.435]
[1766309751126,1.1307,3003.5,3002.9,0.435]
[1766309751290,1.1307,3003.5,3002.8,6.61142982]
[1766309751291,0.4927,3003.5,3002.8,6.30012982]
[1766309751497,1.1307,3003.3,3002.9,0.435]
[1766309752792,1.1307,3003.3,3002.7,5.65970893]
[1766309752998,1.6234,3003.2,3002.8,0.435]
[1766309753420,1.1307,3003.2,3002.8,0.435]
[1766309755024,1.1307,3003.2,3002.7,5.65970893]
[1766309755333,1.1307,3003.0,3002.6,0.435]
[1766309756099,0.4927,3003.1,3002.6,0.435]
[1766309757736,1.6234,3003.1,3002.6,0.435]
[1766309758328,0.4927,3003.0,3002.3,5.97600893]
[1766309758507,1.6234,3002.9,3002.6,0.435]
[1766309758715,1.6234,3002.9,3002.3,6.59039787]
[1766309758716,1.6234,3002.9,3002.4,3.33065141]
[1766309758919,0.434,3003.5,3002.6,0.435]
[1766309759227,1.6234,3003.1,3002.7,0.435]
[1766309759396,1.6234,3003.1,3002.4,3.33059389]
[1766309759593,1.6234,3003.1,3002.5,1.45895918]
[1766309760197,1.6234,3003.1,3002.6,0.435]
[1766309760445,3.76346375,3003.5,3002.7,5.65970893]
[1766309760446,0.434,3003.5,3002.7,5.65970893]
[1766309760597,0.434,3003.5,3002.7,6.09470893]
[1766309760796,0.436,3003.8,3002.8,0.5006]
[1766309761013,0.002,3003.9,3003.1,5.65970893]
[1766309761311,0.002,3003.9,3003.2,0.435]
[1766309762115,0.002,3003.8,3003.2,0.435]
[1766309762517,1.1327,3003.8,3003.2,0.435]
[1766309762935,1.6254,3003.8,3003.2,0.435]
[1766309763139,1.1307,3003.7,3003.2,0.435]
[1766309763326,1.1307,3003.2,3002.5,5.66070893]
[1766309763504,1.1307,3002.9,3002.6,0.435]
[1766309763858,0.436,3003.8,3002.7,0.5006]
[1766309764134,3.32922728,3003.7,3002.7,0.5006]
[1766309764332,0.70943558,3003.6,3002.8,0.435]
[1766309765702,0.4899,3003.4,3002.8,0.435]
[1766309765903,1.2233,3003.3,3002.5,10.52654065]
[1766309766122,0.70943558,3003.6,3002.6,0.435]
[1766309766333,1.2233,3004.1,3003.3,0.4755]
[1766309766502,1.7132,3004.1,3003.3,0.9105]
[1766309766699,1.88472,3004.1,3003.3,0.9105]
[1766309767042,1.2233,3004.0,3003.3,0.9105]
[1766309767531,0.002,3004.2,3003.5,0.4755]
[1766309767740,0.002,3004.2,3003.7,5.65970893]
[1766309767902,0.002,3004.2,3003.8,0.435]
[1766309769841,1.2233,3004.4,3003.8,0.435]
[1766309770543,0.4899,3004.5,3003.8,0.435]
[1766309770921,0.002,3004.2,3003.8,0.435]
[1766309771259,0.002,3004.6,3003.8,0.435]
[1766309771260,0.002,3004.6,3003.8,1.54626253]
[1766309771425,0.002,3005.4,3004.6,5.65970893]
[1766309771426,0.4899,3005.2,3004.6,5.65970893]
[1766309771741,3.32934896,3005.4,3004.7,0.435]
[1766309771943,0.4899,3005.3,3004.7,0.435]
[1766309772262,3.32934855,3005.4,3004.8,0.435]
[1766309772428,1.2233,3005.2,3004.8,0.435]
[1766309772613,0.002,3005.4,3004.8,0.9105]
[1766309772943,0.4899,3005.2,3003.9,1.6887]
[1766309773146,1.7132,3004.6,3004.0,0.435]
[1766309773330,0.0333947,3005.1,3004.3,0.4755]
[1766309773331,1.2233,3005.1,3004.3,0.4755]
[1766309773643,1.2233,3005.1,3004.4,1.6887]
[1766309773945,1.2233,3005.1,3004.5,0.435]
[1766309774311,3.32934675,3005.4,3004.5,0.9105]
[1766309774510,1.2253,3005.4,3004.6,1.6887]
[1766309774943,0.17172,3005.3,3004.6,1.6887]
[1766309775843,0.17172,3005.3,3004.6,1.2132]
[1766309776039,1.2253,3005.4,3004.7,0.4755]
[1766309776421,1.2253,3005.4,3004.8,0.435]
[1766309777339,1.2233,3005.3,3004.9,0.435]
[1766309777541,0.002,3005.4,3004.9,0.435]
[1766309777939,0.002,3005.4,3004.7,0.4755]
[1766309778160,0.002,3005.4,3005.0,0.435]
[1766309778622,0.4899,3005.4,3005.1,0.435]
[1766309778822,1.7132,3005.2,3004.4,3.32844804]
[1766309779069,1.7132,3005.2,3004.5,0.435]
[1766309779360,1.7132,3005.2,3004.6,3.32822436]
[1766309779659,1.7132,3005.4,3004.6,0.4755]
[1766309780550,1.7132,3005.4,3004.7,0.4755]
[1766309780731,1.2253,3005.5,3004.8,0.4755]
[1766309781130,1.7152,3005.5,3004.8,0.4755]
[1766309781664,0.002,3005.5,3005.0,1.6887]
[1766309781862,0.002,3005.9,3005.3,1.2132]
[1766309782064,0.002,3005.9,3005.3,2.1237]
[1766309782265,1.2253,3005.9,3005.3,0.9105]
[1766309782563,1.2233,3005.8,3005.3,0.435]
[1766309782876,0.17352,3005.9,3005.4,0.4755]
[1766309783038,0.002,3005.9,3005.4,1.24647344]
[1766309783355,0.002,3005.9,3005.5,0.4755]
[1766309783557,0.002,3006.3,3005.6,1.24647122]
[1766309783771,0.002,3006.3,3005.8,1.6887]
[1766309783977,0.002,3006.3,3005.8,1.90107]
[1766309784177,0.433,3007.0,3005.8,1.90107]
[1766309784178,0.0333947,3006.9,3005.8,0.21237]
[1766309784359,3.32590547,3006.7,3005.9,2.1237]
[1766309784565,1.2233,3006.6,3005.9,1.6887]
[1766309784751,1.4968,3006.6,3006.0,0.435]
[1766309784957,0.433,3007.0,3006.0,0.435]
[1766309784958,1.2233,3007.0,3006.1,1.6887]
[1766309785259,1.4968,3006.7,3006.2,0.435]
[1766309785437,0.2735,3006.4,3005.5,0.4755]
[1766309785641,1.2233,3006.3,3005.6,0.9105]
[1766309785841,1.2233,3006.3,3005.7,0.435]
[1766309786041,1.2233,3006.3,3005.6,0.4755]
[1766309786241,1.2233,3005.9,3005.5,0.435]
[1766309786540,1.2233,3006.6,3005.6,0.435]
[1766309786778,1.2233,3006.4,3005.6,0.435]
[1766309787453,1.2233,3006.5,3005.9,0.4755]
[1766309787664,0.002,3006.3,3005.9,0.4755]
[1766309787879,0.002,3006.3,3006.0,0.435]
[1766309788056,0.274,3006.7,3006.1,0.4755]
[1766309788274,1.2233,3006.5,3005.7,0.435]
[1766309788440,6.65247472,3006.4,3005.7,0.435]
[1766309788639,1.2233,3006.3,3005.7,0.435]
[1766309788850,1.2233,3006.3,3005.3,1.2132]
[1766309788851,1.2233,3006.2,3005.5,0.4755]
[1766309789269,0.2775,3006.1,3005.1,0.4755]
[1766309789480,1.4532,3005.8,3004.8,1.2132]
[1766309789680,1.4532,3005.8,3005.2,0.435]
[1766309789837,1.4532,3005.8,3005.3,0.435]
[1766309790041,1.4537,3006.1,3005.3,0.9505]
[1766309790242,1.39932671,3006.1,3005.4,1.1715]
[1766309790476,1.1752,3006.1,3005.5,0.5155]
[1766309790777,1.1752,3006.1,3005.5,0.9505]
[1766309791094,3.32579486,3006.8,3005.7,1.1715]
[1766309791246,1.1752,3006.7,3005.7,1.1715]
[1766309791745,1.1752,3006.5,3005.6,0.5155]
[1766309791945,6.65158972,3006.8,3005.7,0.435]
[1766309791946,1.4546,3006.3,3005.7,0.435]
[1766309792141,1.4546,3006.3,3005.8,0.435]
[1766309792649,1.4546,3006.3,3004.6,6.304]
[1766309792650,1.1752,3006.1,3004.6,6.304]
[1766309792840,1.1752,3006.1,3004.8,1.1715]
[1766309793042,1.1752,3006.2,3005.0,1.1715]
[1766309793241,0.4781448,3006.1,3005.2,1.1715]
[1766309793466,1.1752,3006.2,3005.2,1.1715]
[1766309793692,1.1752,3006.2,3005.3,0.435]
[1766309793844,1.1752,3006.2,3005.4,1.6065]
[1766309794344,0.2799,3006.3,3005.5,1.1715]
[1766309794967,4.50582652,3006.4,3005.6,0.9279]
[1766309795270,0.81130433,3006.4,3005.8,1.6664]
[1766309795449,0.0333947,3006.5,3005.8,1.6664]
[1766309795652,1.4607,3006.6,3005.9,0.9279]
[1766309795850,0.2817,3006.3,3005.2,0.4929]
[1766309796067,1.1795,3006.2,3005.5,0.4929]
[1766309796390,6.65207888,3006.6,3005.8,0.4929]
[1766309796556,1.4612,3006.3,3005.8,0.435]
[1766309796950,1.1795,3006.2,3005.8,0.435]
[1766309797381,0.2821,3006.1,3005.3,1.1735]
[1766309797586,0.2821,3006.1,3004.9,0.4929]
[1766309797587,1.1795,3006.0,3005.4,0.435]
[1766309797749,1.1795,3006.0,3005.5,0.435]
[1766309797946,1.1795,3006.0,3005.6,0.435]
[1766309798577,1.1795,3006.0,3005.1,1.1735]
[1766309798776,1.1795,3006.0,3005.2,1.1735]
[1766309798949,1.4624,3006.0,3005.3,0.435]
[1766309799358,4.78911585,3006.0,3005.3,0.435]
[1766309799696,4.78911585,3006.0,3005.1,0.16664]
[1766309799697,1.1795,3005.9,3005.1,0.16664]
[1766309799878,1.1795,3005.9,3005.4,0.435]
[1766309800192,1.1795,3005.5,3004.6,0.4929]
[1766309800402,1.1795,3005.3,3004.6,0.9279]
[1766309800965,1.1795,3005.3,3004.6,0.435]
[1766309801281,1.1795,3005.3,3004.7,0.4929]
[1766309801452,4.50665772,3005.6,3004.8,0.4929]
[1766309801665,1.4633,3006.0,3005.2,0.4929]
[1766309801864,1.1795,3006.0,3005.3,0.4929]
[1766309802100,1.1795,3005.8,3004.6,3.32817782]
[1766309802280,0.0333947,3005.7,3004.9,0.4929]
[1766309802479,0.0333947,3005.7,3004.8,1.1735]
[1766309802480,1.1795,3005.7,3005.0,0.435]
[1766309802794,0.45061118,3005.9,3005.0,0.435]
[1766309803163,3.32658163,3006.1,3005.3,1.1735]
[1766309803482,1.1795,3006.0,3005.4,0.435]
[1766309803875,1.1795,3006.0,3005.5,0.435]
[1766309804082,1.1795,3005.8,3005.4,0.435]
[1766309804289,1.1795,3005.8,3005.1,0.4929]
[1766309804492,1.1795,3005.8,3005.4,0.435]
[1766309804679,1.4645,3006.0,3005.4,0.435]
[1766309804879,4.50640132,3005.8,3005.4,0.435]
[1766309806371,1.1795,3005.7,3004.6,1.6664]
[1766309806573,1.4653,3005.5,3004.7,0.434]
[1766309806766,1.1795,3005.3,3004.6,1.6664]
[1766309806999,0.2862,3005.2,3004.7,0.434]
[1766309807204,1.4657,3005.2,3004.7,0.434]
[1766309807769,1.1795,3005.2,3004.7,0.434]
[1766309808572,3.61343731,3005.5,3004.7,0.434]
[1766309808810,1.54084373,3005.4,3004.7,0.434]
[1766309809010,1.54084373,3005.4,3004.6,0.5261823]
[1766309809204,1.1795,3005.4,3004.6,0.4929]
[1766309809392,1.1795,3005.4,3004.7,0.434]
[1766309809596,1.4664,3005.4,3004.6,0.4929]
[1766309809905,1.4664,3005.4,3004.8,0.434]
[1766309810104,0.2873,3005.3,3004.9,0.434]
[1766309810292,1.1795,3005.2,3004.9,0.434]
[1766309810476,1.1795,3005.2,3004.5,0.001]
[1766309810676,1.1795,3005.2,3004.6,0.434]
[1766309811784,1.1795,3005.1,3004.6,0.434]
[1766309812005,1.4675,3004.9,3004.0,0.4929]
[1766309812212,1.4675,3004.9,3004.1,0.434]
[1766309812509,1.4675,3004.9,3004.1,0.9269]
[1766309812688,4.79541034,3004.9,3004.1,0.9269]
[1766309812876,1.1795,3004.8,3004.1,0.9269]
[1766309813078,3.32791034,3004.9,3004.2,0.434]
[1766309813079,1.1795,3004.4,3004.2,0.434]
[1766309813300,0.45074103,3004.7,3004.2,0.434]
[1766309813503,1.1795,3004.6,3004.2,0.434]
[1766309814201,0.45074103,3004.7,3004.2,0.434]
[1766309814402,1.63024103,3004.7,3004.2,0.434]
[1766309814614,1.1795,3004.6,3004.2,0.434]
[1766309814984,0.52470681,3004.6,3004.3,0.434]
[1766309815181,1.1795,3004.5,3004.1,0.434]
[1766309815989,0.52470681,3004.6,3004.1,0.434]
[1766309816395,1.1795,3004.5,3004.1,0.434]
[1766309816716,0.3227947,3004.4,3003.6,0.001]
[1766309817015,1.4693,3004.3,3003.6,0.435]
[1766309817514,0.41758507,3004.4,3003.6,0.435]
[1766309817820,1.1795,3004.7,3004.0,0.4929]
[1766309818018,3.32756555,3005.2,3004.1,0.434]
[1766309818313,1.1795,3005.1,3004.3,1.6664]
[1766309818684,4.50723867,3005.1,3004.3,1.6664]
[1766309818884,4.50723867,3005.1,3004.4,1.1735]
[1766309819115,1.1795,3005.1,3004.5,0.4929]
[1766309819315,4.50719242,3005.1,3004.5,0.4929]
[1766309819519,1.47,3005.0,3004.3,0.21004]
[1766309819721,1.47,3005.0,3004.4,0.434]
[1766309820806,3.61832073,3005.0,3004.4,0.434]
[1766309821120,1.4706,3004.9,3004.4,0.434]
[1766309821319,1.4706,3004.9,3004.2,0.434]
[1766309821512,1.4706,3004.9,3004.2,0.64404]
[1766309823124,1.1795,3004.8,3004.2,0.64404]
[1766309823422,1.1795,3004.8,3004.2,0.21004]
[1766309823823,1.1795,3004.8,3004.2,2.31044]
[1766309824023,1.1795,3005.2,3004.2,0.64404]
[1766309824330,1.01002567,3006.0,3004.6,1.6664]
[1766309824331,4.50686278,3005.4,3004.6,1.6664]
[1766309824508,1.1795,3005.1,3004.6,0.434]
[1766309824828,6.65472556,3005.4,3004.1,0.001]
[1766309824829,1.2313,3004.9,3004.5,0.434]
[1766309825031,6.65472556,3005.4,3004.1,0.001]
[1766309825032,1.2313,3004.7,3004.1,0.001]
[1766309825231,1.524,3004.7,3004.1,0.435]
[1766309825418,1.2313,3004.7,3004.1,0.001]
[1766309825598,1.2313,3004.7,3004.1,0.22223]
[1766309826325,1.2313,3004.7,3004.1,0.001]
[1766309828596,1.2313,3004.6,3004.1,0.001]
[1766309829037,1.2313,3004.5,3003.6,0.435]
[1766309829199,1.2313,3004.5,3003.6,0.001]
[1766309829620,1.2313,3004.3,3003.6,0.001]
[1766309829826,1.2313,3004.1,3003.6,0.001]
[1766309830127,1.2313,3004.4,3003.6,0.001]
[1766309831135,1.2313,3004.2,3003.3,0.001]
[1766309831330,1.2313,3004.0,3003.3,0.001]
[1766309831532,1.2313,3004.0,3003.5,0.001]
[1766309831701,1.2313,3003.8,3003.5,0.001]
[1766309832434,1.68732279,3003.8,3003.5,0.001]
[1766309832628,1.2313,3004.0,3003.5,0.001]
[1766309832832,1.2313,3005.0,3003.9,1.2547]
[1766309833136,1.2313,3004.9,3004.0,1.7773]
[1766309833432,1.2313,3004.9,3004.0,0.5226]
[1766309833606,3.32800851,3004.8,3003.8,0.434]
[1766309833807,1.2313,3004.6,3003.8,0.9566]
[1766309834005,1.2313,3004.6,3003.8,0.5226]
[1766309834228,1.2313,3004.6,3003.8,1.7773]
[1766309835239,1.2313,3004.4,3003.5,0.001]
[1766309835423,1.2313,3004.4,3003.5,0.435]
[1766309835732,1.2313,3004.3,3003.5,0.001]
[1766309835941,1.2313,3004.1,3003.5,0.001]
[1766309836910,1.2646947,3004.1,3003.5,0.001]
[1766309837241,1.2313,3004.0,3003.3,0.001]
[1766309837950,1.2313,3003.8,3003.3,0.001]
[1766309838155,1.2313,3003.6,3003.3,0.001]
[1766309838654,1.2313,3003.6,3002.9,0.001]
[1766309840428,1.2313,3003.5,3002.9,0.001]
[1766309840866,1.2313,3003.5,3003.0,0.5226]
[1766309841068,2.12033056,3003.7,3003.0,0.5226]
[1766309841263,1.6643,3003.7,3003.0,0.5226]
[1766309841563,0.433,3003.7,3003.2,1.7773]
[1766309842565,1.2313,3004.0,3003.2,1.7773]
[1766309842748,1.2313,3004.0,3003.2,1.2547]
[1766309842945,1.2313,3004.0,3003.3,0.5226]
[1766309843868,1.2313,3004.0,3003.3,1.7773]
[1766309844038,1.2313,3004.0,3003.4,0.5226]
[1766309844233,1.2313,3004.0,3003.1,0.434]
[1766309844234,1.2313,3003.9,3003.1,0.434]
[1766309844651,1.2313,3003.9,3002.9,1.7783]
[1766309844851,1.2313,3003.9,3003.0,0.434]
[1766309845373,1.2313,3003.9,3003.2,1.733]
[1766309845580,1.6377,3004.1,3003.4,0.5262]
[1766309846278,0.433,3004.1,3003.4,0.5262]
[1766309846583,1.2047,3004.0,3003.4,0.5262]
[1766309847142,1.2047,3004.0,3003.3,1.2068]
[1766309847343,1.2047,3003.9,3003.2,0.5262]
[1766309847579,1.2047,3003.9,3003.2,0.434]
[1766309847791,3.32838919,3004.5,3003.2,0.434]
[1766309847792,0.002,3004.7,3003.5,0.5262]
[1766309847992,0.002,3004.7,3003.1,5.91283583]
[1766309847993,1.2047,3004.6,3003.9,0.5262]
[1766309848152,1.99099241,3004.6,3003.9,0.5262]
[1766309848357,1.2047,3004.5,3003.8,1.2068]
[1766309848592,1.2047,3004.5,3003.7,0.5262]
[1766309849985,1.2047,3004.5,3003.5,1.2068]
[1766309850159,1.2047,3004.5,3003.5,1.6408]
[1766309850361,1.2047,3004.3,3003.5,1.6408]
[1766309850580,1.2047,3004.3,3003.5,2.167]
[1766309850892,1.2047,3004.3,3003.6,0.5262]
[1766309851865,1.2047,3004.2,3003.5,1.2068]
[1766309852193,1.2047,3004.2,3003.4,0.5262]
[1766309852393,1.2047,3004.2,3003.4,0.7429]
[1766309852973,1.2047,3004.2,3003.4,0.5262]
[1766309853562,1.2047,3004.2,3003.3,1.2068]
[1766309853760,1.2047,3004.2,3003.1,0.9602]
[1766309853986,1.2047,3004.1,3003.1,0.9602]
[1766309854302,1.2047,3004.1,3003.1,0.5262]
[1766309854500,1.2047,3003.9,3002.9,1.734]
[1766309854685,1.2047,3003.7,3002.9,1.2078]
[1766309854878,1.2047,3003.7,3003.0,0.5262]
[1766309856407,1.2047,3003.7,3002.9,0.001]
[1766309856697,1.2867,3003.6,3002.9,0.001]
[1766309857579,0.002,3004.6,3003.0,3.32998116]
[1766309857910,1.2867,3004.4,3003.1,1.6496]
[1766309858116,1.2867,3004.4,3003.3,0.5037]
[1766309858276,0.002,3003.7,3003.3,0.5037]
[1766309858621,0.002,3003.7,3003.4,0.70892559]
[1766309858981,1.2867,3004.5,3003.6,1.2156]
[1766309859331,0.433,3004.4,3003.9,0.5037]
[1766309860522,0.002,3004.6,3004.0,0.5037]
[1766309860725,0.002,3004.6,3004.0,1.7193]
[1766309861583,0.0353947,3004.6,3004.0,1.7193]
[1766309861800,0.002,3004.6,3004.0,0.5037]
[1766309862100,1.2887,3004.6,3004.0,0.5037]
[1766309862910,1.79387516,3004.6,3004.0,0.5037]
[1766309863117,1.2867,3004.5,3004.0,0.5037]
[1766309865028,1.2867,3004.5,3003.8,1.2156]
[1766309865181,1.2867,3004.5,3003.9,0.5037]
[1766309867703,1.2867,3004.4,3003.5,0.5037]
[1766309867884,1.2867,3004.2,3003.5,0.5037]
[1766309868210,1.2867,3004.2,3003.6,0.5037]
[1766309873234,1.2867,3004.2,3003.3,0.5037]
[1766309873390,1.2867,3004.1,3003.3,0.5037]
[1766309874132,1.2867,3004.1,3003.3,1.7193]
[1766309874334,1.2867,3004.1,3003.4,0.5037]
[1766309874700,1.2867,3004.1,3003.4,1.7193]
[1766309874894,1.2867,3004.1,3003.5,0.5037]
[1766309875395,1.2867,3004.1,3003.5,1.2156]
[1766309875613,1.2867,3004.1,3003.5,1.7193]
[1766309875810,0.002,3004.2,3003.7,1.2156]
[1766309876122,0.002,3004.2,3003.6,0.5037]
[1766309876123,0.002,3004.2,3003.9,0.5037]
[1766309877308,0.002,3004.2,3003.6,1.7193]
[1766309877508,0.002,3004.2,3003.7,0.5037]
[1766309877720,0.002,3004.2,3003.6,0.5037]
[1766309878122,0.002,3004.2,3003.6,1.2156]
[1766309878318,0.002,3004.2,3003.7,0.5037]
[1766309878730,0.002,3004.2,3003.8,0.5037]
[1766309878956,0.002,3004.2,3003.8,0.67563]
[1766309879654,0.002,3004.6,3004.2,0.5037]
[1766309879928,0.435,3004.6,3004.2,0.5037]
[1766309881229,0.002,3004.7,3004.5,0.5037]
[1766309881421,0.002,3005.0,3004.5,0.5037]
[1766309882200,0.002,3005.0,3003.8,0.17193]
[1766309882201,0.002,3005.0,3004.6,0.5037]
[1766309882406,0.002,3005.0,3004.3,1.2156]
[1766309882605,0.002,3005.0,3004.6,0.5037]
[1766309883435,1.2867,3004.9,3004.0,1.7193]
[1766309883602,1.2867,3004.9,3004.1,0.5037]
[1766309884223,1.2867,3004.9,3004.2,0.5037]
[1766309885214,1.2867,3004.9,3004.2,1.8144]
[1766309886304,0.002,3005.0,3004.2,1.8144]
[1766309886506,1.2778,3004.9,3004.2,1.8144]
[1766309889040,1.2778,3004.8,3004.2,1.8144]
[1766309889342,3.3279179,3004.9,3003.7,0.5262]
[1766309889343,1.2778,3004.6,3003.7,0.5262]
[1766309890227,1.2778,3004.6,3003.7,1.8369]
[1766309890414,1.2778,3004.4,3003.7,1.8369]
[1766309891511,1.2778,3004.4,3003.8,0.5262]
[1766309892728,1.2778,3004.2,3003.5,1.8379]
[1766309893126,1.2778,3004.2,3003.5,0.001]
[1766309893352,1.2778,3004.0,3003.5,0.001]
[1766309893657,0.002,3004.6,3003.5,0.5272]
[1766309893860,1.7128,3004.6,3003.9,1.8369]
[1766309894072,0.435,3004.6,3003.9,1.8369]
[1766309894236,1.2778,3004.5,3003.9,1.8369]
[1766309894738,1.78189609,3004.5,3003.9,1.8369]
[1766309894931,1.2778,3004.4,3003.6,1.8369]
[1766309895131,1.2778,3004.4,3003.7,0.5262]
[1766309895444,1.2778,3004.4,3003.5,0.001]
[1766309895646,1.2778,3004.4,3003.7,0.5262]
[1766309895820,1.2778,3004.4,3003.8,0.5262]
[1766309896335,1.2778,3004.4,3003.5,0.001]
[1766309896545,1.73841469,3004.3,3003.5,1.8379]
[1766309896854,0.433,3004.2,3003.6,0.5262]
[1766309897650,1.2778,3004.1,3003.6,0.5262]
[1766309898050,1.2778,3004.1,3003.5,1.3117]
[1766309898238,1.2778,3004.1,3003.5,0.001]
[1766309898440,1.2778,3003.9,3003.5,0.001]
[1766309898655,1.7108,3003.8,3003.5,0.001]
[1766309898952,1.7108,3003.8,3003.0,0.001]
[1766309898953,1.2778,3003.7,3003.0,0.001]
[1766309901349,1.2778,3003.7,3003.0,0.5272]
[1766309904061,1.2778,3003.7,3003.0,0.001]
[1766309904294,1.2778,3003.5,3003.0,0.001]
[1766309904563,1.2282,3003.3,3003.0,0.001]
[1766309905540,0.433,3003.4,3003.0,0.001]
[1766309907232,1.2282,3003.3,3003.0,0.001]
[1766309907433,0.433,3003.4,3002.6,0.5094]
[1766309907434,1.2282,3003.1,3002.6,0.5094]
[1766309907770,1.2282,3003.1,3002.5,0.001]
[1766309907771,5.80644139,3003.0,3002.5,0.001]
[1766309907935,1.6612,3003.0,3002.5,0.001]
[1766309908159,5.80644139,3003.0,3002.5,0.001]
[1766309908357,1.6612,3003.0,3002.5,0.001]
[1766309911277,1.2282,3002.9,3002.5,0.001]
[1766309914179,0.49912481,3002.8,3002.5,0.001]
[1766309914672,0.433,3003.0,3002.5,1.783]
[1766309914859,0.433,3003.0,3002.5,0.5104]
[1766309915189,1.3016,3002.9,3002.5,0.001]
[1766309917095,1.3016,3003.5,3002.9,0.5427]
[1766309917298,0.433,3003.3,3003.0,0.5427]
[1766309917598,0.433,3003.3,3003.0,1.8655]
[1766309918974,3.32980908,3003.2,3002.5,0.001]
[1766309919156,0.60646,3003.3,3002.5,0.001]
[1766309919157,1.3016,3003.1,3002.5,0.001]
[1766309919561,1.3016,3003.1,3002.5,0.5437]
[1766309921579,0.433,3003.1,3002.9,1.8655]
[1766309921983,1.3016,3003.5,3002.9,1.8655]
[1766309922285,0.433,3003.2,3002.9,1.8655]
[1766309922967,0.433,3003.2,3002.5,0.001]
[1766309923180,0.433,3003.2,3002.6,0.5427]
[1766309923181,1.7346,3003.2,3002.6,0.5427]
[1766309923600,1.7346,3003.2,3002.6,1.8655]
[1766309924004,1.3016,3003.1,3002.5,0.001]
[1766309926091,1.3016,3003.0,3002.5,0.001]
[1766309926505,1.90806,3003.2,3002.5,1.8665]
[1766309927022,0.17346,3003.2,3002.5,0.001]
[1766309927318,0.433,3003.1,3002.6,1.8655]
[1766309928921,1.3016,3003.0,3002.5,0.001]
[1766309931129,0.002,3003.2,3002.7,0.5427]
[1766309931292,0.433,3003.1,3002.7,0.5427]
[1766309931493,0.433,3003.1,3002.5,0.5437]
[1766309931720,1.7346,3003.1,3002.5,0.5437]
[1766309932632,1.3016,3003.0,3002.5,0.001]
[1766309932830,0.433,3002.9,3002.5,0.001]
[1766309933013,1.7346,3002.9,3002.5,0.001]
[1766309933401,1.3016,3002.8,3002.3,0.001]
[1766309933726,1.3349947,3002.8,3002.3,0.001]
[1766309933941,1.3016,3002.6,3002.3,0.001]
[1766309934229,0.434,3002.5,3002.3,0.001]
[1766309934425,1.7356,3002.5,3002.2,0.001]
[1766309934619,1.7356,3002.5,3001.9,0.5427]
[1766309934818,1.3016,3002.4,3001.9,0.5427]
[1766309935497,1.3016,3002.4,3001.8,1.3238]
[1766309935498,1.47516,3002.4,3001.8,0.001]
[1766309936223,1.3016,3002.4,3001.8,0.001]
[1766309936419,1.3016,3002.4,3002.3,0.001]
[1766309938620,1.3016,3002.4,3001.8,0.001]
[1766309941025,0.17679947,3002.7,3002.1,0.5427]
[1766309941230,1.3036,3002.9,3002.4,0.5427]
[1766309941398,0.434,3002.8,3002.4,1.8655]
[1766309942298,0.002,3002.9,3002.4,1.3228]
[1766309942499,0.002,3002.9,3002.7,0.5427]
[1766309942728,0.434,3003.1,3002.7,1.8655]
[1766309943037,0.002,3003.2,3002.9,0.5427]
[1766309944338,0.002,3003.2,3002.8,1.3228]
[1766309944798,0.002,3003.0,3002.8,1.3228]
[1766309944995,0.002,3003.0,3002.7,0.18655]
[1766309945197,1.638,3002.9,3002.4,0.5298]
[1766309945748,0.434,3002.9,3002.4,1.8625]
[1766309945951,0.434,3002.8,3002.4,1.8625]
[1766309946341,0.434,3002.8,3002.4,0.5298]
[1766309947056,0.002,3003.0,3002.4,0.5298]
[1766309947225,0.002,3003.0,3002.7,1.8615]
[1766309948320,0.002,3003.2,3002.8,0.5288]
[1766309949162,0.002,3003.2,3002.7,1.3327]